fUST/lending_fUST_20240903
["ID","MTS","AMOUNT","RATE_DAILY","PERIOD"]
[337031069,1725339038951,-500.0,0.00034578,7]
[337031070,1725339038961,-500.0,0.00034578,7]
[337031071,1725339038972,-500.0,0.00034578,7]
[337031072,1725339038981,-500.0,0.00034578,7]
[337031073,1725339038991,-500.0,0.00034578,7]
[337031074,1725339039000,-500.0,0.00034578,7]
[337031075,1725339039009,-500.0,0.00034578,7]
[337031076,1725339039018,-500.0,0.00034578,7]
[337031077,1725339039028,-500.0,0.00034578,7]
[337031078,1725339039037,-500.0,0.00034578,7]
[337031079,1725339039046,-500.0,0.00034578,7]
[337031080,1725339039056,-500.0,0.00034578,7]
[337031081,1725339039065,-500.0,0.00034578,7]
[337031082,1725339039074,-500.0,0.00034578,7]
[337031083,1725339039084,-500.0,0.00034578,7]
[337031084,1725339039095,-500.0,0.00034578,7]
[337031085,1725339039105,-500.0,0.00034578,7]
[337031086,1725339039119,-500.0,0.00034578,7]
[337031087,1725339039129,-500.0,0.00034578,7]
[337031088,1725339039139,-500.0,0.00034578,7]
[337031089,1725339039149,-500.0,0.00034578,7]
[337031090,1725339039160,-500.0,0.00034578,7]
[337031091,1725339039169,-500.0,0.00034578,7]
[337031092,1725339039180,-500.0,0.00034578,7]
[337031093,1725339039192,-500.0,0.00034578,7]
[337031094,1725339039203,-500.0,0.00034578,7]
[337031095,1725339039212,-500.0,0.00034578,7]
[337031096,1725339039223,-500.0,0.00034578,7]
[337031097,1725339039233,-316.03239489,0.00034578,7]
[337031098,1725339039244,-500.0,0.00034578,7]
[337031099,1725339039254,-500.0,0.00034578,7]
[337031100,1725339039266,-500.0,0.00034578,7]
[337031101,1725339039277,-562.38923595,0.00034579,7]
[337031102,1725339039288,-500.0,0.00034579,7]
[337031103,1725339039298,-500.0,0.00034579,7]
[337031104,1725339039308,-500.0,0.00034579,7]
[337031105,1725339039318,-500.0,0.00034579,7]
[337031106,1725339039330,-500.0,0.00034579,7]
[337031107,1725339039341,-500.0,0.00034579,7]
[337031108,1725339039352,-500.0,0.00034579,7]
[337031109,1725339039362,-500.0,0.00034579,7]
[337031110,1725339039372,-500.0,0.00034579,7]
[337031111,1725339039381,-500.0,0.00034579,7]
[337031112,1725339039391,-500.0,0.00034579,7]
[337031113,1725339039401,-500.0,0.00034579,7]
[337031114,1725339039410,-500.0,0.00034579,7]
[337031115,1725339039419,-500.0,0.00034579,7]
[337031116,1725339039428,-500.0,0.00034579,7]
[337031117,1725339039438,-500.0,0.00034579,7]
[337031118,1725339039450,-500.0,0.00034579,7]
[337031119,1725339039462,-486.13927341,0.00034579,7]
[337031120,1725339039472,-500.0,0.00034579,7]
[337031121,1725339039481,-500.0,0.00034579,7]
[337031122,1725339039491,-500.0,0.00034579,7]
[337031123,1725339039500,-206.26122911,0.00034579,7]
[337031124,1725339039509,-500.0,0.00034579,7]
[337031125,1725339039521,-500.0,0.00034579,7]
[337031126,1725339039530,-436.83037399,0.00034579,7]
[337031127,1725339039540,-1788.35448922,0.00034579,7]
[337031128,1725339039551,-1788.35448922,0.00034579,7]
[337031129,1725339039560,-1788.35448922,0.00034579,7]
[337031130,1725339039569,-1788.35448922,0.00034579,7]
[337031131,1725339039579,-1788.35448922,0.00034579,7]
[337031132,1725339039588,-1788.35448922,0.00034579,7]
[337031133,1725339039597,-1788.35448922,0.00034579,7]
[337031134,1725339039606,-1788.35448922,0.00034579,7]
[337031135,1725339039617,-1788.35448922,0.00034579,7]
[337031136,1725339039628,-1788.35448922,0.00034579,7]
[337031137,1725339039639,-1788.35448922,0.00034579,7]
[337031138,1725339039651,-1788.35448922,0.00034579,7]
[337031139,1725339039661,-1788.35448922,0.00034579,7]
[337031140,1725339039670,-1788.35448922,0.00034579,7]
[337031141,1725339039679,-1880.94305498,0.00034579,7]
[337031142,1725339039700,-1880.94305498,0.00034579,7]
[337031143,1725339039709,-1880.94305498,0.00034579,7]
[337031144,1725339039719,-1880.94305498,0.00034579,7]
[337031145,1725339039728,-1880.94305498,0.00034579,7]
[337031146,1725339039738,-1880.94305498,0.00034579,7]
[337031147,1725339039747,-39329.25659458,0.0003458,11]
[337031148,1725339039756,-35133.48408844,0.0003458,4]
[337031186,1725339040679,-49584.24388952,0.0003458,4]
[337031198,1725339043759,-114.32389828,0.0003458,4]
[337031210,1725339671408,460.29,0.000201,10]
[337031251,1725340158476,-1954.05626931,0.000246,16]
[337031396,1725340239939,-1283.45776453,0.000246,16]
[337031397,1725340239951,-1389.84281133,0.0003,2]
[337031398,1725340239961,-500.0,0.00034012,7]
[337031399,1725340239971,-2585.30738571,0.00034439,2]
[337031400,1725340239981,-195.0237834,0.00034439,2]
[337031401,1725340239990,-195.02378336,0.00034442,2]
[337031402,1725340240000,-195.02378336,0.00034444,2]
[337031403,1725340240010,-195.02378336,0.00034447,2]
[337031404,1725340240020,-195.02378336,0.00034449,2]
[337031405,1725340240030,-200.0,0.00034457,2]
[337031406,1725340240040,-6204.015167,0.00034458,2]
[337031407,1725340240049,-6292.90440465,0.00034529,3]
[337031434,1725340243110,-500.0,0.00034538,7]
[337031435,1725340243120,-500.0,0.00034538,7]
[337031436,1725340243130,-500.0,0.00034538,7]
[337031437,1725340243144,-245.59603036,0.00034538,7]
[337031461,1725340245767,-254.40396964,0.00034538,7]
[337031463,1725340245777,-15.23107181,0.00034538,7]
[337031465,1725340245789,-265.35819996,0.00034538,7]
[337031467,1725340262546,155.0,0.000201,2]
[337031468,1725340267743,155.0,0.000201,2]
[337031469,1725340272647,155.0,0.000201,2]
[337031470,1725340277161,233.4041653,0.000201,2]
[337031541,1725341273957,43252.68999828,0.0002,2]
[337031543,1725341290633,914.31962285,0.000167,2]
[337031548,1725341297204,2118.99704993,0.0002,2]
[337031550,1725341321586,20864.14635645,0.0002,2]
[337031552,1725341388629,296.3473675,0.00020243,2]
[337031580,1725341431993,-225.8609558,0.00020243,2]
[337031581,1725341432002,-193.73256503,0.00020377,2]
[337031621,1725341438000,-222.98002631,0.00020377,2]
[337031622,1725341438010,-161.819629,0.0002063,2]
[337031624,1725341438019,-161.819629,0.00020727,2]
[337031625,1725341438029,-161.819629,0.00020825,2]
[337031627,1725341438040,-510.57983001,0.00020861,2]
[337031629,1725341438050,-161.819629,0.00020923,2]
[337031631,1725341438059,-300.0,0.00020999,2]
[337031633,1725341438069,-10000.0,0.00021,5]
[337031635,1725341438078,-407.32829771,0.00021,14]
[337031637,1725341438088,-161.819629,0.0002102,2]
[337031639,1725341438097,-161.819629,0.00021118,2]
[337031641,1725341438107,-161.819629,0.00021216,2]
[337031643,1725341438116,-161.819629,0.00021314,2]
[337031644,1725341438125,-161.819629,0.00021411,2]
[337031645,1725341438135,-161.819629,0.00021509,2]
[337031646,1725341438144,-161.819629,0.00021607,2]
[337031647,1725341438154,-161.819629,0.00021705,2]
[337031648,1725341438163,-467.2789915,0.00021904,2]
[337031649,1725341438173,-393.67246517,0.00021999,2]
[337031650,1725341438182,-500.0,0.00021999,2]
[337031651,1725341438192,-500.0,0.00021999,2]
[337031652,1725341438201,-500.0,0.00021999,2]
[337031653,1725341438210,-500.0,0.00021999,2]
[337031654,1725341438219,-500.0,0.00021999,2]
[337031655,1725341438229,-500.0,0.00021999,2]
[337031656,1725341438238,-408.38546777,0.00021999,2]
[337031657,1725341438247,-500.0,0.00021999,2]
[337031658,1725341438257,-500.0,0.00021999,2]
[337031659,1725341438266,-500.0,0.00021999,2]
[337031660,1725341438276,-500.0,0.00021999,2]
[337031661,1725341438286,-500.0,0.00021999,2]
[337031662,1725341438296,-500.0,0.00021999,2]
[337031663,1725341438305,-500.0,0.00021999,2]
[337031664,1725341438314,-500.0,0.00021999,2]
[337031665,1725341438323,-500.0,0.00021999,2]
[337031667,1725341438332,-500.0,0.00021999,2]
[337031669,1725341438342,-500.0,0.00021999,2]
[337031671,1725341438352,-500.0,0.00021999,2]
[337031673,1725341438363,-279.0728949,0.00021999,2]
[337031675,1725341438378,-500.0,0.00021999,2]
[337031677,1725341438388,-500.0,0.00021999,2]
[337031680,1725341438398,-500.0,0.00021999,2]
[337031681,1725341438408,-500.0,0.00021999,2]
[337031683,1725341438418,-500.0,0.00021999,2]
[337031686,1725341438427,-500.0,0.00021999,2]
[337031688,1725341438436,-500.0,0.00021999,2]
[337031690,1725341438447,-500.0,0.00021999,2]
[337031692,1725341438457,-500.0,0.00021999,2]
[337031694,1725341438466,-19387.9837809,0.00022,11]
[337031696,1725341438476,-262643.13068412,0.00022,30]
[337031698,1725341438485,-182.2520588,0.00022176,2]
[337031700,1725341438494,-465.11394958,0.00022999,2]
[337031702,1725341438504,-500.0,0.00023088,2]
[337031704,1725341438513,-420.0,0.00023099,2]
[337031706,1725341438522,-574.0657238,0.00023468,2]
[337031708,1725341438531,-749.73449495,0.00023635,2]
[337031710,1725341438542,-1958.1675283,0.00024231,2]
[337031711,1725341438551,-2809.4698272,0.00025,2]
[337031714,1725341438561,-1427.84025484,0.00025,2]
[337031716,1725341438574,-2710.65423509,0.00025,2]
[337031718,1725341438583,-180.0,0.00025409,2]
[337031720,1725341438593,-19664.62829729,0.00025647,11]
[337031722,1725341438602,-24900.0,0.00025647,2]
[337031724,1725341438611,-275.270668,0.0002571,2]
[337031726,1725341438620,-933.6322081,0.00025844,2]
[337031728,1725341438630,-1492.9223202,0.00026549,2]
[337031730,1725341438639,-42711.18074577,0.00027,3]
[337031732,1725341438648,-151.0,0.00027,7]
[337031734,1725341438657,-154.91120184,0.00029199,2]
[337031736,1725341438667,-601.65217797,0.0003,2]
[337031738,1725341438676,-165.44969507,0.0003,2]
[337031740,1725341438685,-186.18105145,0.0003065,2]
[337031742,1725341438694,-500.0,0.00032644,7]
[337031744,1725341438703,-176.0,0.00033,2]
[337031746,1725341438713,-156.0,0.00033,2]
[337031748,1725341438722,-5520.0,0.00034,2]
[337031750,1725341438731,-2064.99094727,0.00034398,2]
[337031752,1725341438741,-500.0,0.00034473,4]
[337031754,1725341438751,-504.49023696,0.00034473,2]
[337031756,1725341438759,-151.0,0.00034478,14]
[337031758,1725341438769,-151.0,0.00034487,14]
[337031760,1725341438778,-151.0,0.00034487,14]
[337031763,1725341438788,-172.22,0.00034487,2]
[337031765,1725341438797,-172.22,0.00034487,2]
[337031767,1725341438806,-271.114996,0.00034488,14]
[337031768,1725341438815,-142955.11159754,0.00034488,4]
[337031848,1725341446183,-500.0,0.00021999,2]
[337031849,1725341446193,-550.0,0.00021999,2]
[337031850,1725341446203,-500.0,0.00021999,2]
[337031851,1725341446212,-500.0,0.00021999,2]
[337031852,1725341446222,-500.0,0.00021999,2]
[337031853,1725341446231,-500.0,0.00021999,2]
[337031854,1725341446241,-500.0,0.00021999,2]
[337031855,1725341446249,-512.12158342,0.00021999,2]
[337031856,1725341446259,-500.0,0.00021999,2]
[337031857,1725341446269,-500.0,0.00021999,2]
[337031858,1725341446278,-441.16281248,0.00021999,2]
[337031859,1725341446287,-500.0,0.00024658,2]
[337031860,1725341446305,-500.0,0.00024658,2]
[337031861,1725341446315,-500.0,0.00024658,2]
[337031862,1725341446324,-500.0,0.00024658,2]
[337031863,1725341446333,-500.0,0.00024658,2]
[337031864,1725341446342,-500.0,0.00024658,2]
[337031865,1725341446351,-500.0,0.00024658,2]
[337031866,1725341446360,-500.0,0.00024658,2]
[337031867,1725341446371,-500.0,0.00024658,2]
[337031868,1725341446383,-500.0,0.00024658,2]
[337031869,1725341446392,-500.0,0.00024658,2]
[337031870,1725341446401,-500.0,0.00024658,2]
[337031871,1725341446412,-500.0,0.00024658,2]
[337031872,1725341446421,-27667.83,0.00034478,3]
[337031873,1725341446430,-8231.64080679,0.00034488,4]
[337031928,1725342631955,-274.10185466,0.00023287,7]
[337031931,1725342631968,-331.417,0.00023287,7]
[337031940,1725342632049,-418.79596847,0.00023287,7]
[337031942,1725342632060,-484.73483082,0.00024116,2]
[337031944,1725342632074,-448.89737728,0.00024116,2]
[337031947,1725342632084,-163.3822326,0.00024658,15]
[337031950,1725342632094,-300.0,0.00024741,2]
[337031954,1725342632103,-300.0,0.00024741,2]
[337031957,1725342632113,-3825.79039012,0.00024742,2]
[337031959,1725342632127,-2868.52466684,0.00024742,2]
[337032006,1725342638232,-1256.44656581,0.00024742,2]
[337032009,1725342638248,-16949.23837723,0.00024742,2]
[337032010,1725342638258,-3237.26010185,0.00025418,2]
[337032012,1725342638267,-4430.71012708,0.00025475,2]
[337032014,1725342638412,-14365.40774421,0.00025475,2]
[337032015,1725342638425,-3934.16960101,0.00025475,2]
[337032016,1725342638435,-275.2706696,0.00025518,2]
[337032017,1725342638449,-303.0,0.0002681,2]
[337032018,1725342638459,-250.0,0.0002692,2]
[337032019,1725342638469,-420.0,0.00027215,2]
[337032020,1725342638479,-500.0,0.00029832,2]
[337032021,1725342638489,-176.0,0.00033,2]
[337032022,1725342638499,-156.0,0.00033,2]
[337032023,1725342638509,-500.0,0.00033717,7]
[337032024,1725342638519,-313.03156016,0.0003411,30]
[337032025,1725342638530,-2064.99094727,0.00034344,2]
[337032027,1725342638540,-18696.31,0.00034382,3]
[337032028,1725342638549,-500.0,0.00034391,7]
[337032029,1725342638559,-500.0,0.00034391,7]
[337032031,1725342638569,-500.0,0.00034391,7]
[337032033,1725342638579,-500.0,0.00034391,7]
[337032035,1725342638588,-531.00809943,0.00034391,7]
[337032037,1725342638597,-500.0,0.00034391,7]
[337032039,1725342638607,-500.0,0.00034391,7]
[337032041,1725342638616,-500.0,0.00034391,7]
[337032043,1725342638626,-339.26753148,0.00034391,7]
[337032045,1725342638635,-500.0,0.00034391,7]
[337032047,1725342638645,-500.0,0.00034391,7]
[337032049,1725342638654,-500.0,0.00034391,7]
[337032051,1725342638664,-500.0,0.00034391,7]
[337032053,1725342638673,-500.0,0.00034391,7]
[337032055,1725342638682,-500.0,0.00034391,7]
[337032057,1725342638695,-500.0,0.00034391,7]
[337032059,1725342638704,-500.0,0.00034391,7]
[337032060,1725342638714,-500.0,0.00034391,7]
[337032062,1725342638724,-500.0,0.00034391,7]
[337032065,1725342638734,-500.0,0.00034391,7]
[337032066,1725342638743,-500.0,0.00034391,7]
[337032068,1725342638753,-500.0,0.00034391,7]
[337032070,1725342638762,-500.0,0.00034391,7]
[337032072,1725342638772,-500.0,0.00034391,7]
[337032075,1725342638782,-500.0,0.00034391,7]
[337032077,1725342638791,-500.0,0.00034391,7]
[337032079,1725342638800,-500.0,0.00034391,7]
[337032081,1725342638809,-500.0,0.00034391,7]
[337032083,1725342638819,-500.0,0.00034391,7]
[337032085,1725342638828,-500.0,0.00034391,7]
[337032087,1725342638837,-500.0,0.00034391,7]
[337032089,1725342638846,-500.0,0.00034391,7]
[337032091,1725342638858,-500.0,0.00034391,7]
[337032093,1725342638869,-500.0,0.00034391,7]
[337032102,1725342638962,-500.0,0.00034391,7]
[337032104,1725342638972,-500.0,0.00034391,7]
[337032106,1725342638981,-500.0,0.00034391,7]
[337032108,1725342638991,-521.81911468,0.00034391,7]
[337032110,1725342639002,-500.0,0.00034391,7]
[337032112,1725342639011,-500.0,0.00034391,7]
[337032114,1725342639021,-500.0,0.00034391,7]
[337032116,1725342639031,-500.0,0.00034391,7]
[337032118,1725342639040,-500.0,0.00034391,7]
[337032120,1725342639050,-500.0,0.00034391,7]
[337032122,1725342639060,-500.0,0.00034391,7]
[337032124,1725342639070,-3758.08751,0.00034391,2]
[337032125,1725342639079,-606.66,0.00034392,3]
[337032127,1725342639089,-15566.55,0.00034392,3]
[337032129,1725342639098,-22435.58,0.00034392,3]
[337032131,1725342639107,-26922.69,0.00034402,3]
[337032133,1725342639117,-379.59383892,0.00034412,7]
[337032134,1725342639126,-500.0,0.00034412,7]
[337032135,1725342639148,-887.40821443,0.00034412,7]
[337032136,1725342639159,-500.0,0.00034412,7]
[337032137,1725342639169,-887.40821443,0.00034412,7]
[337032138,1725342639179,-500.0,0.00034412,7]
[337032139,1725342639190,-887.40821443,0.00034412,7]
[337032141,1725342639201,-337.44288558,0.00034412,7]
[337032142,1725342639210,-887.40821443,0.00034412,7]
[337032143,1725342639220,-500.0,0.00034412,7]
[337032144,1725342639231,-887.40821443,0.00034412,7]
[337032145,1725342639241,-887.40821443,0.00034412,7]
[337032146,1725342639251,-887.40821443,0.00034412,7]
[337032147,1725342639261,-887.40821443,0.00034412,7]
[337032148,1725342639271,-500.0,0.00034412,7]
[337032150,1725342639282,-500.0,0.00034412,7]
[337032152,1725342639291,-500.0,0.00034412,7]
[337032153,1725342639301,-500.0,0.00034412,7]
[337032155,1725342639311,-887.40821443,0.00034412,7]
[337032157,1725342639321,-887.40821443,0.00034412,7]
[337032159,1725342639330,-887.40821443,0.00034412,7]
[337032160,1725342639340,-300.0,0.00034412,7]
[337032161,1725342639349,-912.76273485,0.00034412,7]
[337032162,1725342639359,-912.76273485,0.00034412,7]
[337032163,1725342639369,-912.76273485,0.00034412,7]
[337032164,1725342639379,-912.76273485,0.00034412,7]
[337032165,1725342639388,-912.76273485,0.00034412,7]
[337032166,1725342639398,-912.76273485,0.00034412,7]
[337032167,1725342639407,-912.76273485,0.00034412,7]
[337032168,1725342639417,-912.76273485,0.00034412,7]
[337032169,1725342639426,-912.76273485,0.00034412,7]
[337032170,1725342639436,-912.76273485,0.00034412,7]
[337032171,1725342639457,-912.76273485,0.00034412,7]
[337032172,1725342639467,-887.70650291,0.00034412,7]
[337032173,1725342639476,-887.70650291,0.00034412,7]
[337032174,1725342639485,-887.70650291,0.00034412,7]
[337032175,1725342639494,-19664.62829729,0.00034413,11]
[337032176,1725342639504,-153.273083,0.00034413,14]
[337032177,1725342639514,-118115.62330607,0.00034413,4]
[337032201,1725342640206,-1820.34824429,0.00034413,4]
[337032212,1725342643216,-1326.0,0.00034413,4]
[337032216,1725342646171,-167.46674593,0.00024558,2]
[337032218,1725342646182,-29044.99126747,0.00034413,4]
[337032219,1725342808856,19226.78,0.0002,2]
[337032225,1725343347094,200.0,0.00023,120]
[337032226,1725343484965,7525.56,0.000201,2]
[337032286,1725343838457,-1492.9223202,0.00028246,2]
[337032288,1725343838467,-275.270668,0.00028422,2]
[337032289,1725343838477,-250.0,0.00028978,2]
[337032291,1725343838486,-167.46674593,0.00029096,2]
[337032293,1725343838495,-300.0,0.00029195,2]
[337032295,1725343838505,-300.0,0.00029195,2]
[337032297,1725343838515,-24900.0,0.00029196,2]
[337032299,1725343838524,-167.46674593,0.00029264,2]
[337032301,1725343838535,-500.0,0.00029857,2]
[337032303,1725343838546,-300.0,0.0003,120]
[337032305,1725343838556,-500.0,0.00032098,7]
[337032307,1725343838566,-180.0,0.00032115,2]
[337032309,1725343838575,-400.0,0.00032877,60]
[337032311,1725343838586,-253.97784888,0.00032941,7]
[337032313,1725343838595,-156.0,0.00033,2]
[337032315,1725343838604,-500.0,0.00033665,7]
[337032317,1725343838614,-2832.60258911,0.000341,2]
[337032319,1725343838624,-2051.351633,0.000342,7]
[337032321,1725343838634,-2064.99094727,0.00034289,2]
[337032323,1725343838643,-1000.0,0.0003429,2]
[337032325,1725343838653,-7884.78791579,0.00034313,2]
[337032327,1725343838663,-3758.08751,0.00034347,2]
[337032329,1725343838672,-500.0,0.00034347,7]
[337032331,1725343838681,-500.0,0.00034347,7]
[337032333,1725343838691,-500.0,0.00034347,7]
[337032334,1725343838700,-500.0,0.00034347,7]
[337032337,1725343838711,-531.00809943,0.00034347,7]
[337032339,1725343838722,-500.0,0.00034347,7]
[337032341,1725343838732,-500.0,0.00034347,7]
[337032343,1725343838742,-500.0,0.00034347,7]
[337032345,1725343838753,-339.26753148,0.00034347,7]
[337032347,1725343838762,-500.0,0.00034347,7]
[337032349,1725343838772,-500.0,0.00034347,7]
[337032351,1725343838783,-500.0,0.00034347,7]
[337032354,1725343838794,-500.0,0.00034347,7]
[337032356,1725343838804,-500.0,0.00034347,7]
[337032358,1725343838817,-500.0,0.00034347,7]
[337032360,1725343838826,-500.0,0.00034347,7]
[337032362,1725343838837,-257.07186363,0.00034347,7]
[337032364,1725343838848,-500.0,0.00034347,7]
[337032366,1725343838858,-500.0,0.00034347,7]
[337032368,1725343838868,-500.0,0.00034347,7]
[337032370,1725343838877,-500.0,0.00034347,7]
[337032372,1725343838887,-500.0,0.00034347,7]
[337032374,1725343838896,-500.0,0.00034347,7]
[337032376,1725343838906,-500.0,0.00034347,7]
[337032378,1725343838916,-500.0,0.00034347,7]
[337032381,1725343838927,-500.0,0.00034347,7]
[337032383,1725343838936,-500.0,0.00034347,7]
[337032384,1725343838945,-500.0,0.00034347,7]
[337032385,1725343838954,-500.0,0.00034347,7]
[337032386,1725343838963,-500.0,0.00034347,7]
[337032387,1725343838972,-500.0,0.00034347,7]
[337032388,1725343838982,-500.0,0.00034347,7]
[337032389,1725343838991,-500.0,0.00034347,7]
[337032390,1725343839000,-500.0,0.00034347,7]
[337032391,1725343839011,-500.0,0.00034347,7]
[337032392,1725343839021,-500.0,0.00034347,7]
[337032393,1725343839034,-500.0,0.00034347,7]
[337032394,1725343839046,-500.0,0.00034347,7]
[337032395,1725343839057,-500.0,0.00034347,7]
[337032396,1725343839068,-500.0,0.00034347,7]
[337032397,1725343839077,-500.0,0.00034347,7]
[337032398,1725343839086,-500.0,0.00034347,7]
[337032399,1725343839095,-500.0,0.00034347,7]
[337032400,1725343839105,-500.0,0.00034347,7]
[337032401,1725343839114,-500.0,0.00034347,7]
[337032402,1725343839123,-500.0,0.00034347,7]
[337032403,1725343839133,-500.0,0.00034347,7]
[337032404,1725343839142,-500.0,0.00034347,7]
[337032406,1725343839152,-500.0,0.00034347,7]
[337032408,1725343839161,-22435.58,0.00034348,3]
[337032410,1725343839171,-25777.85,0.00034348,3]
[337032412,1725343839183,-21481.54,0.00034348,3]
[337032414,1725343839192,-379.59383892,0.00034368,7]
[337032416,1725343839201,-500.0,0.00034368,7]
[337032418,1725343839210,-500.0,0.00034368,7]
[337032420,1725343839220,-500.0,0.00034368,7]
[337032422,1725343839231,-500.0,0.00034368,7]
[337032424,1725343839240,-500.0,0.00034368,7]
[337032426,1725343839249,-500.0,0.00034368,7]
[337032428,1725343839258,-500.0,0.00034368,7]
[337032430,1725343839267,-500.0,0.00034368,7]
[337032432,1725343839276,-500.0,0.00034368,7]
[337032434,1725343839286,-500.0,0.00034368,7]
[337032436,1725343839295,-500.0,0.00034368,7]
[337032437,1725343839306,-500.0,0.00034368,7]
[337032438,1725343839317,-500.0,0.00034368,7]
[337032439,1725343839325,-500.0,0.00034368,7]
[337032440,1725343839334,-500.0,0.00034368,7]
[337032441,1725343839344,-500.0,0.00034368,7]
[337032442,1725343839354,-500.0,0.00034368,7]
[337032443,1725343839364,-237.44288558,0.00034368,7]
[337032444,1725343839373,-500.0,0.00034368,7]
[337032445,1725343839382,-1187.62671832,0.00034368,7]
[337032446,1725343839391,-550.0,0.00034368,7]
[337032447,1725343839401,-1187.62671832,0.00034368,7]
[337032448,1725343839410,-1187.62671832,0.00034368,7]
[337032449,1725343839419,-1187.62671832,0.00034368,7]
[337032450,1725343839428,-1187.62671832,0.00034368,7]
[337032451,1725343839438,-1187.62671832,0.00034368,7]
[337032452,1725343839448,-1187.62671832,0.00034368,7]
[337032453,1725343839457,-1187.62671832,0.00034368,7]
[337032454,1725343839466,-1187.62671832,0.00034368,7]
[337032455,1725343839475,-1187.62671832,0.00034368,7]
[337032456,1725343839485,-1187.62671832,0.00034368,7]
[337032457,1725343839494,-1187.62671832,0.00034368,7]
[337032458,1725343839503,-1187.62671832,0.00034368,7]
[337032460,1725343839513,-1327.91512443,0.00034368,7]
[337032461,1725343839522,-1327.91512443,0.00034368,7]
[337032462,1725343839531,-1327.91512443,0.00034368,7]
[337032463,1725343839545,-1327.91512443,0.00034368,7]
[337032464,1725343839554,-19664.62829729,0.00034368,11]
[337032465,1725343839563,-9798.54772015,0.00034368,11]
[337032466,1725343839573,-76313.56379782,0.00034369,4]
[337032473,1725343843302,-416.72635237,0.00034359,3]
[337032496,1725344922270,152028.29272524,0.0001999,2]
[337032497,1725344922522,155.18780675,0.0002,2]
[337032501,1725344989640,290.42042015,0.0002,2]
[337032502,1725344989664,11.76376716,0.0002,2]
[337032515,1725345005537,299.33,0.000201,2]
[337032520,1725345032564,-313.24264581,0.000202,2]
[337032521,1725345032573,-121.33414232,0.00024243,2]
[337032522,1725345032588,-1371.58817788,0.00024243,2]
[337032523,1725345032598,-334.93349186,0.000249,2]
[337032524,1725345032607,-2832.60258911,0.000249,2]
[337032525,1725345032617,-300.0,0.00024999,2]
[337032526,1725345032626,-201.34499988,0.00024999,2]
[337032547,1725345038703,-98.65500012,0.00024999,2]
[337032549,1725345038713,-500.0,0.00024999,2]
[337032551,1725345038724,-500.0,0.00024999,2]
[337032553,1725345038734,-500.0,0.00024999,2]
[337032555,1725345038744,-500.0,0.00024999,2]
[337032557,1725345038753,-500.0,0.00024999,2]
[337032559,1725345038763,-531.00809943,0.00024999,2]
[337032561,1725345038772,-500.0,0.00024999,2]
[337032563,1725345038782,-339.26753148,0.00024999,2]
[337032565,1725345038792,-500.0,0.00024999,2]
[337032567,1725345038801,-500.0,0.00024999,2]
[337032569,1725345038810,-500.0,0.00024999,2]
[337032571,1725345038819,-500.0,0.00024999,2]
[337032573,1725345038829,-500.0,0.00024999,2]
[337032575,1725345038838,-500.0,0.00024999,2]
[337032577,1725345038848,-500.0,0.00024999,2]
[337032579,1725345038858,-500.0,0.00024999,2]
[337032581,1725345038868,-500.0,0.00024999,2]
[337032583,1725345038877,-500.0,0.00024999,2]
[337032585,1725345038887,-500.0,0.00024999,2]
[337032587,1725345038897,-500.0,0.00024999,2]
[337032589,1725345038907,-500.0,0.00024999,2]
[337032591,1725345038917,-500.0,0.00024999,2]